bitfinex-derivatives/quotes_SOLF0:USTF0_20241011
["timestamp","ask_amount","ask_price","bid_price","bid_amount"]
[1728618275769,12.2772,141.06,141.05,7.97850111]
[1728618275970,12.2772,141.06,141.05,12.8869268]
[1728618280377,12.2772,141.06,141.05,0.12502]
[1728618280578,12.2772,141.06,141.05,5.03671548]
[1728618280882,12.2772,141.06,141.05,12.89542825]
[1728618283477,12.2772,141.06,141.05,0.12502]
[1728618283673,12.2772,141.06,141.05,12.90021356]
[1728618286879,12.2772,141.06,141.05,0.12502]
[1728618287078,12.2772,141.06,141.05,12.90402265]
[1728618288886,3.546,141.11,141.05,12.90402265]
[1728618289074,8.73,141.08,141.06,12.77900265]
[1728618289270,8.73,141.08,141.07,4.91500102]
[1728618290082,3.5472,141.07,141.05,0.12502]
[1728618290283,12.2772,141.07,141.05,0.12502]
[1728618290485,12.2772,141.07,141.06,12.78597722]
[1728618296690,12.2772,141.07,141.05,0.12502]
[1728618296883,12.2772,141.07,141.06,12.8003681]
[1728618299984,8.73,141.07,141.05,0.12502]
[1728618300188,12.2769,141.07,141.06,12.8001035]
[1728618301696,3.5469,141.07,141.06,12.8001035]
[1728618301885,3.5469,141.08,141.06,12.8001035]
[1728618302085,13.69,141.09,141.07,12.8001035]
[1728618302283,4.96,141.09,141.08,12.8001035]
[1728618302481,17.2364,141.09,141.08,12.8001035]
[1728618302688,8.5064,141.09,141.08,12.8001035]
[1728618302889,17.2364,141.09,141.08,12.8001035]
[1728618304300,17.2364,141.09,141.08,4.92311673]
[1728618305000,17.2364,141.09,141.08,12.80377064]
[1728618305399,13.69,141.09,141.05,8.85502]
[1728618305590,3.5469,141.08,141.06,7.88102886]
[1728618305785,3.5469,141.08,141.07,12.80687148]
[1728618306397,3.5465,141.09,141.07,12.80687148]
[1728618306692,8.73,141.13,141.08,21.53687148]
[1728618306898,8.73,141.13,141.09,12.80687148]
[1728618307094,3.5458,141.12,141.1,12.80687148]
[1728618307291,3.5458,141.12,141.11,12.80687148]
[1728618309898,3.5458,141.12,141.11,12.78152345]
[1728618311396,3.5458,141.12,141.11,4.91597056]
[1728618315209,3.5458,141.12,141.11,4.9130536]
[1728618316295,12.2758,141.12,141.11,4.9130536]
[1728618318309,12.2758,141.12,141.08,10.0478]
[1728618318499,12.2758,141.12,141.11,4.9127672]
[1728618321599,0.12502,141.17,141.11,4.9127672]
[1728618321905,3.5448,141.16,141.12,8.45635258]
[1728618322106,3.5448,141.16,141.12,8.5057]
[1728618322406,3.5451,141.15,141.12,4.96]
[1728618323509,3.5451,141.15,141.13,4.90737414]
[1728618323707,3.5451,141.15,141.12,4.96]
[1728618323909,3.5451,141.15,141.13,4.9071524]
[1728618324104,3.5451,141.15,141.12,4.96]
[1728618324312,12.2748,141.16,141.13,4.90573003]
[1728618324503,8.73,141.16,141.12,4.96]
[1728618324900,8.73,141.16,141.13,4.90586224]
[1728618325106,3.5447,141.16,141.12,13.69]
[1728618326003,8.85502,141.17,141.12,13.69]
[1728618326208,3.545,141.15,141.12,13.69]
[1728618332621,3.545,141.15,141.12,17.2356]
[1728618336337,0.12502,141.17,141.14,8.73]
[1728618336538,3.66972,141.17,141.15,8.73]
[1728618336739,0.12502,141.17,141.15,8.73]
[1728618337332,3.66962,141.17,141.15,8.73]
[1728618339940,0.12502,141.17,141.15,8.73]
[1728618340929,3.66952,141.17,141.15,8.73]
[1728618347230,0.12502,141.17,141.15,8.73]
[1728618347435,3.5447,141.16,141.15,8.73]
[1728618364451,0.12502,141.17,141.15,13.69]
[1728618364758,0.12502,141.17,141.16,8.73]
[1728618364961,0.12502,141.17,141.16,12.2747]
[1728618365945,0.12502,141.17,141.16,17.16552848]
[1728618368352,0.12502,141.17,141.16,12.2747]
[1728618368552,0.12502,141.17,141.16,17.16632946]
[1728618368751,0.12502,141.17,141.16,4.89162946]
[1728618368948,0.12502,141.17,141.14,4.96]
[1728618369150,0.12502,141.17,141.15,4.89347827]
[1728618369353,0.12502,141.17,141.14,13.69]
[1728618369554,3.5448,141.16,141.15,4.89340316]
[1728618369754,0.12502,141.17,141.13,4.96]
[1728618369955,3.5452,141.14,141.12,8.73]
[1728618370256,3.5452,141.14,141.13,4.89539989]
[1728618370449,3.59834218,141.15,141.11,4.96]
[1728618370652,3.59834218,141.15,141.12,4.89679735]
[1728618370852,8.73,141.16,141.11,13.69]
[1728618371057,8.73,141.16,141.12,4.89730018]
[1728618371248,3.5456,141.13,141.11,13.69]
[1728618371553,3.5456,141.13,141.12,4.89850959]
[1728618374755,3.5456,141.13,141.11,13.69]
[1728618374949,3.5456,141.13,141.12,4.90386419]
[1728618378563,3.5456,141.13,141.12,12.75526516]
[1728618380553,3.60857625,141.15,141.12,12.75526516]
[1728618380755,3.5453,141.14,141.13,4.90386419]
[1728618381459,3.5453,141.14,141.11,17.2359]
[1728618381666,3.5453,141.14,141.12,12.76210609]
[1728618381860,3.5453,141.14,141.13,4.90850234]
[1728618384652,3.5453,141.14,141.11,17.2359]
[1728618384859,3.5453,141.14,141.12,12.77505143]
[1728618385059,3.5453,141.14,141.13,4.91348132]
[1728618387762,3.5453,141.14,141.13,12.77782889]
[1728618387966,3.5453,141.14,141.11,12.2759]
[1728618388166,3.5453,141.14,141.13,12.77953812]
[1728618388470,3.5453,141.14,141.13,4.91520697]
[1728618388658,3.5453,141.14,141.13,12.78055964]
[1728618388863,3.5453,141.14,141.13,4.91520697]
[1728618389063,12.2753,141.14,141.13,4.91520697]
[1728618389260,12.2753,141.14,141.1,7.86722224]
[1728618389261,8.73,141.14,141.1,7.86722224]
[1728618389462,3.5459,141.11,141.09,4.96]
[1728618389660,3.5459,141.11,141.1,12.78445615]
[1728618394675,8.73,141.14,141.09,13.69]
[1728618394973,3.5457,141.12,141.09,17.2363]
[1728618395272,3.5457,141.12,141.1,4.91524801]
[1728618395470,12.36178421,141.14,141.11,4.91524801]
[1728618395673,3.5456,141.13,141.12,4.91524801]
[1728618396763,3.5456,141.13,141.1,3.5462]
[1728618397075,3.5456,141.13,141.11,7.86326048]
[1728618397267,3.5456,141.13,141.12,4.91469485]
[1728618401976,3.5456,141.13,141.1,3.5462]
[1728618402183,3.5456,141.13,141.11,4.91336919]
[1728618402382,12.2756,141.13,141.12,4.91336919]
[1728618403676,3.5456,141.13,141.12,4.91336919]
[1728618406185,12.2756,141.13,141.12,4.91336919]
[1728618408385,12.2756,141.13,141.09,8.5063]
[1728618408586,3.5458,141.12,141.1,12.77131453]
[1728618408792,3.5458,141.12,141.11,4.91204405]
[1728618408990,3.5458,141.12,141.09,4.96]
[1728618409291,3.5458,141.12,141.11,4.91204464]
[1728618409491,3.5458,141.12,141.11,9.82399393]
[1728618412391,3.5458,141.12,141.11,4.91204464]
[1728618412592,12.2758,141.12,141.11,9.8238374]
[1728618413189,12.2758,141.12,141.11,4.91204464]
[1728618413997,3.5458,141.12,141.11,4.91204464]
[1728618414200,8.73,141.14,141.11,4.91204464]
[1728618414901,3.48886157,141.13,141.11,4.91204464]
[1728618415396,3.5457,141.12,141.11,4.91204464]
[1728618416899,3.5457,141.12,141.11,9.82345385]
[1728618417200,0.12502,141.17,141.11,9.82345385]
[1728618417402,0.12502,141.17,141.12,8.45679741]
[1728618417403,3.545,141.15,141.12,8.45679741]
[1728618417602,3.545,141.15,141.11,13.64204464]
[1728618417603,3.545,141.15,141.11,8.73]
[1728618417798,3.545,141.15,141.12,4.9111904]
[1728618418103,3.545,141.15,141.11,12.2759]
[1728618418305,3.5453,141.14,141.12,4.91129455]
[1728618418503,3.5453,141.14,141.11,7.85804798]
[1728618418796,3.5453,141.14,141.12,4.91127999]
[1728618419002,3.5453,141.14,141.1,8.5061]
[1728618419205,3.5453,141.14,141.11,12.76962569]
[1728618419393,3.5453,141.14,141.12,4.91128058]
[1728618419597,3.5453,141.14,141.11,7.85839802]
[1728618419800,3.5453,141.14,141.12,4.91149876]
[1728618419999,3.5453,141.14,141.11,7.85839897]
[1728618420201,3.5453,141.14,141.12,4.91155313]
[1728618420408,3.5453,141.14,141.11,7.858485]
[1728618420594,3.5453,141.14,141.12,4.91155313]
[1728618420801,3.5453,141.14,141.11,7.85848405]
[1728618421004,8.73,141.13,141.12,4.91155253]
[1728618421200,12.2754,141.13,141.12,4.91155253]
[1728618421707,8.73,141.13,141.08,8.5065]
[1728618421909,12.2757,141.12,141.08,8.5065]
[1728618422102,12.2757,141.12,141.09,12.7706129]
[1728618422406,12.2757,141.12,141.1,12.7706129]
[1728618422607,12.2757,141.12,141.11,12.7706129]
[1728618423003,3.5457,141.12,141.11,12.7706129]
[1728618426304,12.2757,141.12,141.11,12.7706129]
[1728618428618,12.2757,141.12,141.11,7.86157643]
[1728618428913,12.2757,141.12,141.11,4.91348527]
[1728618429613,8.73,141.12,141.06,4.96]
[1728618429809,8.73,141.09,141.07,12.77676972]
[1728618430008,8.73,141.09,141.08,12.77676972]
[1728618430009,12.2766,141.09,141.08,12.77676972]
[1728618430209,3.5466,141.09,141.08,12.77676972]
[1728618430416,3.5466,141.09,141.08,4.9141422]
[1728618430609,3.5466,141.09,141.08,12.77643512]
[1728618430816,12.2762,141.1,141.08,12.77643512]
[1728618431013,8.73,141.1,141.09,4.9141422]
[1728618431316,8.73,141.11,141.09,4.9141422]
[1728618431610,8.73,141.11,141.07,3.5467]
[1728618431611,12.276,141.11,141.07,3.5467]
[1728618432007,12.276,141.11,141.08,12.77570606]
[1728618432210,12.276,141.11,141.09,4.9137331]
[1728618432412,12.276,141.11,141.07,3.5467]
[1728618434008,8.73,141.11,141.07,3.5467]
[1728618434308,3.5463,141.1,141.06,8.5071]
[1728618435418,3.5463,141.1,141.07,12.77846173]
[1728618435817,3.5464,141.09,141.08,12.77846173]
[1728618436116,12.2764,141.09,141.08,12.77846173]
[1728618440415,3.5468,141.08,141.05,0.12502]
[1728618440724,3.5468,141.08,141.06,12.79622852]
[1728618440914,3.5468,141.08,141.07,12.79622852]
[1728618444228,3.5468,141.08,141.05,3.67242]
[1728618444421,3.5468,141.08,141.07,7.87356114]
[1728618444618,3.5468,141.08,141.07,12.79453685]
[1728618448325,3.5468,141.08,141.07,7.8730296]
[1728618448629,3.5468,141.08,141.07,12.7936731]
[1728618449031,12.2765,141.09,141.07,12.7936731]
[1728618449236,12.2765,141.09,141.08,12.7936731]
[1728618451122,3.5463,141.1,141.08,12.7936731]
[1728618451321,8.73,141.1,141.09,4.9206435]
[1728618451523,8.73,141.1,141.09,12.79119047]
[1728618451725,8.73,141.1,141.09,4.9206435]
[1728618452027,8.73,141.1,141.09,12.78963267]
[1728618452231,8.73,141.1,141.06,3.5471]
[1728618452426,8.73,141.1,141.07,12.78957517]
[1728618452628,8.73,141.1,141.08,12.78957517]
[1728618452830,12.2762,141.1,141.09,12.78957517]
[1728618453927,12.2762,141.1,141.05,5.09402]
[1728618453928,8.73,141.1,141.05,5.09402]
[1728618454128,3.5465,141.09,141.06,12.79001967]
[1728618454330,3.5465,141.09,141.07,12.79001967]
[1728618454529,3.5463,141.1,141.08,12.79001967]
[1728618454739,3.5463,141.1,141.09,12.79001967]
[1728618456037,3.5463,141.1,141.09,4.91923833]
[1728618456731,8.73,141.11,141.06,3.5471]
[1728618456943,12.2765,141.09,141.06,3.5471]
[1728618457237,8.73,141.09,141.07,7.87089923]
[1728618457444,8.73,141.09,141.08,12.7902499]
[1728618458340,12.2764,141.09,141.08,12.7902499]
[1728618465049,12.2764,141.09,141.08,4.91935067]
[1728618465541,4.96,141.1,141.08,4.91935067]
[1728618465745,17.2363,141.1,141.09,4.91935067]
[1728618466240,12.2763,141.1,141.09,4.91935067]
[1728618466837,12.2763,141.1,141.06,3.5471]
[1728618467040,12.2763,141.1,141.09,4.91741335]
[1728618469447,12.2763,141.1,141.09,12.7845586]
[1728618469636,12.2763,141.1,141.09,4.91741335]
[1728618470651,12.2763,141.1,141.06,3.5471]
[1728618470952,8.73,141.09,141.07,4.9172761]
[1728618471146,8.73,141.09,141.08,12.78491786]
[1728618471843,12.2764,141.09,141.08,12.78491786]
[1728618472650,12.2764,141.09,141.08,4.9172761]
[1728618472852,12.2764,141.09,141.08,12.78504306]
[1728618478145,3.5467,141.08,141.05,1.54672]
[1728618478350,12.2767,141.08,141.06,4.9177652]
[1728618478648,12.2767,141.08,141.07,4.9177652]
[1728618478957,12.2767,141.08,141.07,12.78618952]
[1728618480963,12.2767,141.08,141.05,1.54672]
[1728618481159,12.2767,141.08,141.07,12.78688996]
[1728618484062,3.5467,141.08,141.07,12.78688996]
[1728618484255,3.5467,141.08,141.05,1.54672]
[1728618484562,3.5467,141.08,141.06,12.78806454]
[1728618484859,3.5467,141.08,141.07,12.78806454]
[1728618486766,55.72393018,141.11,141.07,21.51806454]
[1728618486960,55.72393018,141.11,141.09,8.73]
[1728618487167,55.72393018,141.11,141.1,12.78806454]
[1728618487961,55.72393018,141.11,141.1,4.91848636]
[1728618488158,59.26993018,141.11,141.1,7.86924203]
[1728618488362,59.26993018,141.11,141.1,12.78751829]
[1728618491456,59.26993018,141.11,141.08,13.5998]
[1728618491760,59.26993018,141.11,141.1,7.86968098]
[1728618491962,59.26993018,141.11,141.1,12.78823159]
[1728618495073,55.72393018,141.11,141.1,12.78823159]
[1728618495468,55.72393018,141.11,141.09,3.5464]
[1728618495671,55.72393018,141.11,141.1,12.79046891]
[1728618495966,3.5455,141.13,141.11,3.5459]
[1728618496265,3.5455,141.13,141.12,7.87105779]
[1728618496472,8.73,141.15,141.12,12.79046891]
[1728618496667,3.5452,141.14,141.13,4.91941112]
[1728618496875,8.73,141.15,141.13,4.91941112]
[1728618497169,8.73,141.15,141.11,3.5459]
[1728618497363,12.2751,141.15,141.12,12.79002825]
[1728618497669,2.6823,141.2,141.13,18.60924163]
[1728618497870,3.5443,141.18,141.14,3.5452]
[1728618498276,8.73,141.2,141.15,8.73]
[1728618498460,3.5441,141.19,141.15,8.73]
[1728618498764,8.73,141.2,141.16,4.91793308]
[1728618499367,8.73,141.19,141.16,4.91793308]
[1728618500469,12.2743,141.18,141.16,4.91793308]
[1728618500971,8.85502,141.17,141.16,4.91793308]
[1728618501375,12.39942,141.17,141.16,4.91793308]
[1728618501767,12.39942,141.17,141.14,7.85697823]
[1728618502072,12.39942,141.17,141.15,4.91058905]
[1728618502265,12.39942,141.17,141.13,8.5053]
[1728618502570,3.5447,141.16,141.14,12.76339821]
[1728618502774,3.5447,141.16,141.15,4.90899931]
[1728618505172,3.5447,141.16,141.13,17.2353]
[1728618505374,3.5447,141.16,141.14,12.75443136]
[1728618505576,3.5447,141.16,141.15,4.90620123]
[1728618508176,3.5447,141.16,141.13,17.2353]
[1728618508475,3.5447,141.16,141.14,4.90251896]
[1728618508770,3.5447,141.16,141.13,17.2353]
[1728618508976,3.5447,141.16,141.14,4.90251896]
[1728618509177,3.5447,141.16,141.13,17.2353]
[1728618509383,3.5447,141.16,141.14,4.90251896]
[1728618509677,3.5447,141.16,141.13,17.2353]
[1728618509878,3.5447,141.16,141.14,4.90168095]
[1728618510079,0.12502,141.17,141.13,4.96]
[1728618510275,3.5451,141.15,141.14,4.90094287]
[1728618511883,3.5451,141.15,141.13,8.73]
[1728618512069,3.5451,141.15,141.14,4.90064358]
[1728618512274,3.5451,141.15,141.13,12.2754]
[1728618512575,3.5451,141.15,141.14,4.90066588]
[1728618515283,3.5451,141.15,141.13,12.2754]
[1728618515875,3.5451,141.15,141.12,4.96]
[1728618516081,0.12502,141.17,141.12,4.96]
[1728618516082,3.5454,141.14,141.13,4.89898005]
[1728618516276,3.5454,141.14,141.12,13.69]
[1728618518286,3.5454,141.14,141.12,4.96]
[1728618521990,0.12502,141.17,141.16,3.5447]
[1728618522696,90.6122409,141.21,141.18,3.5439]
[1728618522887,90.6122409,141.21,141.19,8.73]
[1728618524694,90.6122409,141.21,141.18,17.2339]
[1728618525989,3.5439,141.19,141.18,4.96]
[1728618526189,8.73,141.2,141.16,10.0808]
[1728618526497,8.73,141.2,141.16,8.73]
[1728618526883,3.5441,141.19,141.16,8.73]
[1728618528098,3.5441,141.19,141.16,12.2747]
[1728618529493,3.5442,141.18,141.16,12.2747]
[1728618529698,3.5442,141.18,141.16,3.5447]
[1728618534700,3.5442,141.18,141.17,8.73]
[1728618535204,87.0686409,141.21,141.17,8.73]
[1728618535400,3.544,141.19,141.17,8.73]
[1728618535597,3.544,141.19,141.16,12.2747]
[1728618538502,3.5442,141.18,141.16,12.2747]
[1728618539505,3.5441,141.19,141.16,12.2747]
[1728618543402,87.0686409,141.21,141.16,12.2747]
[1728618543600,3.5442,141.18,141.16,12.2747]
[1728618550215,3.5442,141.18,141.16,8.73]
[1728618550416,8.73,141.2,141.15,8.5048]
[1728618550718,3.5447,141.17,141.16,4.90140033]
[1728618550911,8.73,141.18,141.14,8.5051]
[1728618551614,8.73,141.18,141.14,4.96]
[1728618551914,3.5448,141.16,141.14,4.96]
[1728618553214,3.5448,141.16,141.13,17.2353]
[1728618553407,3.5448,141.16,141.14,4.90588872]
[1728618553607,3.5448,141.16,141.15,4.90588872]
[1728618555414,3.5448,141.16,141.13,17.2353]
[1728618555612,3.5448,141.16,141.15,4.90941314]
[1728618558813,3.5442,141.18,141.15,8.45431314]
[1728618559020,8.73,141.19,141.14,8.73]
[1728618559424,8.73,141.19,141.15,4.91138739]
[1728618559719,3.5443,141.18,141.14,12.2751]
[1728618559912,3.5443,141.18,141.15,4.91219271]
[1728618560111,3.5443,141.18,141.16,4.91219271]
[1728618560419,3.5443,141.18,141.14,12.2751]
[1728618560619,3.5443,141.18,141.15,4.91292476]
[1728618560818,3.5443,141.18,141.16,4.91292476]
[1728618561019,3.5443,141.18,141.14,12.2751]
[1728618561313,3.5443,141.18,141.15,4.91361476]
[1728618561518,8.73,141.19,141.16,4.91361476]
[1728618561721,8.73,141.19,141.14,12.2751]
[1728618561921,8.73,141.19,141.15,12.77572967]
[1728618562217,8.73,141.19,141.16,4.91374218]
[1728618562419,3.5444,141.17,141.14,12.2751]
[1728618562620,3.5444,141.17,141.15,12.77829194]
[1728618562825,3.5444,141.17,141.14,12.2751]
[1728618563119,3.5444,141.17,141.15,12.77829194]
[1728618563322,3.5444,141.17,141.16,4.91472767]
[1728618565423,3.5444,141.17,141.16,12.78339995]
[1728618565624,3.5444,141.17,141.16,4.91472767]
[1728618566423,3.5444,141.17,141.14,12.2751]
[1728618566622,3.5444,141.17,141.16,4.91903361]
[1728618567122,3.5444,141.17,141.16,17.70855909]
[1728618568319,3.5444,141.17,141.16,12.78952548]
[1728618568828,3.5444,141.17,141.16,4.91910336]
[1728618572721,3.5444,141.17,141.16,4.91984575]
[1728618572923,12.2744,141.17,141.16,4.91984575]
[1728618577229,3.5448,141.16,141.13,4.96]
[1728618577530,3.5448,141.16,141.14,12.79103701]
[1728618577735,3.5448,141.16,141.15,12.79103701]
[1728618578834,8.73,141.18,141.15,12.79103701]
[1728618579040,3.5446,141.17,141.16,4.91962962]
[1728618580231,3.5446,141.17,141.14,3.5452]
[1728618580432,3.5446,141.17,141.16,4.91946449]
[1728618583834,3.5446,141.17,141.13,8.5053]
[1728618584040,3.5446,141.17,141.16,4.91940347]
[1728618590441,3.5446,141.17,141.13,8.5053]
[1728618590647,3.5446,141.17,141.16,12.79469204]
[1728618590847,3.5446,141.17,141.16,4.9210354]
[1728618591145,3.5446,141.17,141.16,12.79469108]
[1728618592037,3.5446,141.17,141.16,4.9210354]
[1728618592750,3.5446,141.17,141.16,12.79497463]
[1728618594347,3.5446,141.17,141.13,8.5053]
[1728618594550,3.5446,141.17,141.16,12.79609635]
[1728618597341,12.2746,141.17,141.16,12.79609635]
[1728618597544,3.5449,141.16,141.13,4.96]
[1728618598047,8.73,141.17,141.14,12.79789147]
[1728618598243,3.5447,141.16,141.15,12.79789147]
[1728618600747,3.5449,141.15,141.13,4.96]
[1728618601162,3.5449,141.15,141.14,12.79897729]
[1728618603273,3.5449,141.15,141.13,4.96]
[1728618603474,3.5449,141.15,141.14,4.92306946]
[1728618603964,3.5449,141.15,141.14,12.7999806]
[1728618605975,55.69191202,141.19,141.14,25.0750806]
[1728618605976,3.5448,141.16,141.14,25.0750806]
[1728618606167,64.42191202,141.19,141.15,12.7999806]
[1728618606470,64.42191202,141.19,141.16,12.7999806]
[1728618606664,3.5442,141.18,141.17,4.92306946]
[1728618606968,12.2742,141.18,141.17,4.92306946]
[1728618608171,3.5442,141.18,141.17,4.92306946]
[1728618609371,3.5442,141.18,141.17,12.80131517]
[1728618609772,3.5442,141.18,141.17,4.92306946]
[1728618609964,3.5442,141.18,141.17,12.80139628]
[1728618610474,59.23591202,141.19,141.17,12.80139628]
[1728618610674,59.23591202,141.19,141.18,4.92306946]
[1728618612468,7.7346,141.22,141.18,4.92306946]
[1728618612469,11.5046,141.22,141.18,4.92306946]
[1728618612663,11.5046,141.22,141.19,4.92306946]
[1728618612865,11.5046,141.22,141.17,3.5443]
[1728618613068,3.5438,141.2,141.18,12.80346397]
[1728618613368,2.7746,141.22,141.19,4.92440922]
[1728618613570,8.73,141.21,141.2,4.92440922]
[1728618613873,12.2737,141.21,141.2,4.92440922]
[1728618622178,3.5437,141.21,141.2,4.92440922]
[1728618622380,12.2737,141.21,141.2,4.92440922]
[1728618623577,8.73,141.21,141.16,17.2346]
[1728618623775,3.5439,141.2,141.16,17.2346]
[1728618623978,3.5439,141.2,141.17,12.79126239]
[1728618624179,3.5439,141.2,141.18,12.79126239]
[1728618624383,3.5439,141.2,141.19,4.9197163]
[1728618625694,0.12502,141.23,141.19,18.6097163]
[1728618625989,0.12502,141.23,141.22,8.73]
[1728618626284,0.12502,141.23,141.22,13.6497163]
[1728618627184,0.12502,141.23,141.22,18.56609276]
[1728618627480,0.12502,141.23,141.22,13.64637646]
[1728618627686,3.66792,141.23,141.22,4.91637646]
[1728618628078,12.39792,141.23,141.22,4.91637646]
[1728618628281,3.5432,141.22,141.19,4.96]
[1728618628488,3.5432,141.22,141.2,12.77573962]
[1728618628784,3.5432,141.22,141.21,4.91374601]
[1728618633793,3.5432,141.22,141.21,4.90944883]
[1728618634183,3.5432,141.22,141.19,17.2139]
[1728618634378,3.5432,141.22,141.2,4.90893813]
[1728618634589,3.5432,141.22,141.19,17.2139]
[1728618634787,3.5432,141.22,141.2,4.90880705]
[1728618634988,3.5432,141.22,141.19,17.2139]
[1728618635190,3.5432,141.22,141.2,4.90880712]
[1728618635391,3.5432,141.22,141.19,17.2139]
[1728618635590,3.5432,141.22,141.2,4.90821719]
[1728618635889,3.5432,141.22,141.19,17.2139]
[1728618636093,3.5432,141.22,141.2,4.90823893]
[1728618636293,3.5432,141.22,141.19,17.2139]
[1728618636497,3.5432,141.22,141.2,8.45139114]
[1728618636791,3.5432,141.22,141.2,3.5437]
[1728618637294,3.5432,141.22,141.19,17.2138]
[1728618637888,3.5432,141.22,141.2,4.9071245]
[1728618638088,3.5432,141.22,141.19,17.2138]
[1728618638395,3.5432,141.22,141.2,4.90713155]
[1728618638587,3.5432,141.22,141.19,17.2138]
[1728618638790,3.5432,141.22,141.2,4.90669424]
[1728618639088,3.5432,141.22,141.19,17.2138]
[1728618639394,3.5432,141.22,141.2,4.90669424]
[1728618639592,3.5432,141.22,141.19,17.2138]
[1728618639899,3.5432,141.22,141.2,4.90631885]
[1728618640196,3.5432,141.22,141.19,17.2138]
[1728618640390,3.5432,141.22,141.2,4.90589208]
[1728618640595,3.5432,141.22,141.19,17.2138]
[1728618640797,3.5432,141.22,141.2,4.90589208]
[1728618640998,3.5432,141.22,141.19,17.2138]
[1728618641298,3.5432,141.22,141.2,4.90589208]
[1728618641599,3.5432,141.22,141.19,17.2138]
[1728618641800,3.5432,141.22,141.2,4.90555694]
[1728618641997,3.5432,141.22,141.2,12.2736]
[1728618643001,3.66812,141.23,141.2,12.2736]
[1728618648406,0.12502,141.23,141.19,13.67]
[1728618648605,3.5432,141.22,141.2,4.90406152]
[1728618648803,3.5432,141.22,141.19,17.2138]
[1728618649105,3.5434,141.21,141.2,4.90406211]
[1728618649306,8.73,141.22,141.19,4.94]
[1728618649510,8.73,141.22,141.17,6.2525]
[1728618649707,8.73,141.22,141.18,4.90456775]
[1728618649904,8.73,141.22,141.17,6.2525]
[1728618650106,8.73,141.22,141.18,4.90446449]
[1728618650304,3.5439,141.2,141.17,9.7969]
[1728618650504,3.5439,141.2,141.18,4.90468752]
[1728618650812,3.5443,141.18,141.16,98.12238192]
[1728618651103,3.5443,141.18,141.17,4.90486627]
[1728618653311,3.5443,141.18,141.16,4.94]
[1728618654402,3.5443,141.18,141.17,4.90598976]
[1728618657711,8.73,141.18,141.14,4.94]
[1728618657914,8.73,141.18,141.15,4.90715259]
[1728618657915,3.5447,141.16,141.15,4.90715259]
[1728618658212,8.73,141.18,141.15,4.90715259]
[1728618658410,3.5447,141.16,141.14,3.5451]
[1728618658617,3.5447,141.16,141.15,4.90739922]
[1728618659416,3.5447,141.16,141.13,9.8389]
[1728618659714,3.5447,141.16,141.14,4.90745447]
[1728618659914,3.5447,141.16,141.15,4.90745447]
[1728618660816,3.5447,141.16,141.15,9.81496856]
[1728618661114,12.2747,141.16,141.13,3.5453]
[1728618661319,3.545,141.15,141.13,4.94]
[1728618661516,3.545,141.15,141.14,4.90753644]
[1728618663120,3.545,141.15,141.13,4.94]
[1728618663316,3.545,141.15,141.14,4.90751268]
[1728618663511,8.73,141.16,141.14,4.90751268]
[1728618663712,12.2748,141.16,141.13,8.4853]
[1728618663912,4.94,141.21,141.14,4.90751233]
[1728618664113,8.73,141.18,141.15,4.90749115]
[1728618664315,3.5446,141.17,141.14,3.545]
[1728618664516,3.5446,141.17,141.15,4.90748559]
[1728618664714,3.5446,141.17,141.14,3.545]
[1728618665517,3.5446,141.17,141.15,4.90732462]
[1728618665718,4.94,141.21,141.14,8.73]
[1728618665918,6.2455,141.22,141.16,3.5446]
[1728618666115,1.3055,141.22,141.16,3.5446]
[1728618666325,8.73,141.2,141.16,3.5446]
[1728618666726,3.5441,141.19,141.16,3.5446]
[1728618666928,8.73,141.18,141.14,11.39660703]
[1728618667127,8.73,141.18,141.15,4.90754992]
[1728618667323,12.2744,141.18,141.15,3.5448]
[1728618668430,3.5444,141.18,141.15,3.5448]
[1728618669625,8.73,141.2,141.14,8.73]